{"text_format":"1","workbook":"xlsx","n_sheets":2,"sheets":["ICE","Alerta"],"not_rendered":{"charts":0,"images":2,"macros":1,"external_links":0,"defined_names":1,"comments":1,"pivot_tables":0},"unopened":[],"bounds":{"document_bytes":16777216,"sheet_cells":100000,"rows_first":2000,"rows_last":500,"rows_between":2000,"halvings":0,"cell_chars":16384,"cell_head_chars":4096},"cells_cut":0,"cells_raw":0,"read":"whole","date_system":"1900"}

{"sheet":"ICE","index":0,"n_rows":105,"n_cols":26,"rows_kept":105,"cut":false,"hidden":true,"merged":[[98,1,98,11],[99,1,99,11],[101,1,101,11],[102,1,102,11],[104,1,106,9],[8,1,8,10],[10,1,10,10],[12,1,12,10],[14,1,14,10],[16,1,16,10],[15,1,15,5],[97,1,97,11],[79,1,79,5],[81,1,81,8],[82,1,82,7],[83,1,83,6],[87,1,87,8],[91,1,91,8],[91,10,91,11],[92,1,92,7],[92,8,92,10],[95,1,95,11],[96,1,96,11],[78,1,78,5],[26,1,26,4],[28,1,28,4],[30,1,30,4],[32,1,32,4],[34,1,34,4],[36,1,36,4],[38,1,38,4],[40,1,40,4],[42,1,42,4],[64,1,64,14],[65,1,65,6],[77,1,77,11],[17,1,17,7],[24,1,24,4],[18,1,18,10],[20,1,20,10],[9,1,9,5],[11,1,11,5],[13,1,13,7],[1,1,1,11],[3,5,3,10],[4,5,4,10],[5,5,5,10],[6,1,6,11]]}
[null,null,null,null,null,null,null,null,null,null,null,null,null,null,null,null,"Sim",null,null,"Limite",2000000,null,4000000,null,"Tipo Limite 0- Geral 1-EBITDA ","Spread"]
[null,"Simulador do Incentivo à Capitalização das Empresas",null,null,null,null,null,null,null,null,null,null,null,null,null,null,"Não",null,null,"Limite EBITDA 2023",{"$f":"C68*0.3","v":0},"Limite 2023",{"$f":"IF(U2>$U$1,U2,$U$1)","v":2000000},"Taxas",{"$f":"IF(U2>=$U$1,1,0)","v":0}]
[null,null,null,null,null,null,null,null,null,null,null,null,null,null,null,null,null,null,null,"Limite EBITDA 2024",{"$f":"C69*0.3","v":0},"Limite 2024",{"$f":"IF(U3>$W$1,U3,$W$1)","v":4000000},{"$f":"IF($L$11=$Q$1,I69+0.02,I69+0.015)","v":5.2220000000000003E-2},{"$f":"IF(U3>=$W$1,1,0)","v":0},{"$f":"IF($L$11=$Q$1,0.02,0.015)","v":0.02}]
[null,null,null,null,"Nome:","Nome da Empresa",null,null,null,null,null,null,null,null,null,null,null,null,null,"Limite EBITDA 2025",{"$f":"C70*0.3","v":0},"Limite 2025",{"$f":"IF(U4>$W$1,U4,$W$1)","v":4000000},{"$f":"IF($L$11=$Q$1,I70+0.02,I70+0.015)","v":0.02},0,{"$f":"IF($L$11=$Q$1,0.02,0.015)","v":0.02}]
[null,null,null,null,"NIF:","NIF da Empresa",null,null,null,null,null,null,null,null,null,null,null,null,null,"Limite EBITDA 2026",0,"Limite 2026",{"$f":"IF(U5>$W$1,U5,$W$1)","v":4000000},0.02,0,0.02]
[null,null,null,null,null,null,null,null,null,null,null,null,null,null,null,null,null,null,null,"Limite EBITDA 2027",0,"Limite 2027",4000000,0.02,0,0.02]
[null,"Dados para simulação",null,null,null,null,null,null,null,null,null,null,null,null,null,null,null,null,null,"Limite EBITDA 2028",0,"Limite 2028",4000000,0.02,0,0.02]
[null,null,null,null,null,null,null,null,null,null,null,null,null,null,null,null,null,null,null,"Limite EBITDA 2029",0,"Limite 2029",4000000,0.02,0,0.02]
[null,"É uma sociedade comerciai ou civil sob forma comercial, cooperativa, empresa pública, ou pessoa coletiva de direito público ou privado com sede ou direção efetiva em território português?",null,null,null,null,null,null,null,null,null,"Sim"]
[]
[null,"A empresa classifica-se como micro, pequena ou média empresa ou empresa de pequena-média capitalização (Small Mid Cap)?",null,null,null,null,null,null,null,null,null,"Sim"]
[]
[null,"O sujeito passivo, no exercício em causa, exerce, a título principal, uma atividade de natureza comercial, industrial ou agrícola?",null,null,null,null,null,null,null,null,null,"Sim"]
[]
[null,"A entidade está sujeita à supervisão do Banco de Portugal ou da Autoridade de Supervisão de Seguros e Fundos de Pensões, ou de sucursais em Portugal de instituições de crédito, ou de outras instituições financeiras ou de empresas de seguros?",null,null,null,null,null,null,null,null,null,"Não"]
[]
[null,"Dispõe de contabilidade regularmente organizada, de acordo com a normalização contabilística e outras disposições legais em vigor para o respetivo setor de atividade?",null,null,null,null,null,null,null,null,null,"Sim"]
[]
[null,"O seu lucro tributável é determinado por métodos indiretos?",null,null,null,null,null,null,null,null,null,"Não"]
[]
[null,"Tem a situação fiscal e contributiva regularizada?",null,null,null,null,null,null,null,null,null,"Sim"]
[]
[]
[]
[null,"Aumentos de capitais próprios elegíveis",null,null,null,2023,2024,2025,2026,2027,2028,2029]
[]
[null,"As entradas realizadas em dinheiro no âmbito da constituição de sociedades ou do aumento do capital social da sociedade beneficiária.",null,null,null,0,0,0,0,0,0,0]
[]
[null,"As entradas em espécie realizadas no âmbito de aumento do capital social que correspondam à conversão de créditos em capital.",null,null,null,0,0,0,0,0,0,0]
[]
[null,"Os prémios de emissão de participações sociais.",null,null,null,0,0,0,0,0,0,0]
[]
[null,"A aplicação dos lucros contabilísticos passíveis de distribuição, de acordo com a legislação comercial, em resultados transitados ou, diretamente, em reservas ou no aumento do capital.",null,null,null,0,0,0,0,0,0,0]
[]
[null,"Saídas dos capitais próprios elegíveis"]
[]
[]
[]
[null,"Em dinheiro ou em espécie a favor dos titulares do capital:"]
[]
[null,"A título de redução do mesmo ou de partilha do património.",null,null,null,0,0,0,0,0,0,0]
[]
[null,"Distribuições de reservas ou resultados transitados.",null,null,null,0,0,0,0,0,0,0]
[]
[]
[]
[]
[]
[]
[]
[]
[]
[]
[]
[]
[]
[]
[]
[]
[]
[]
[]
[]
[]
[null,"Resultado da simulação"]
[]
[null,"Ano","EBITDA Fiscal","Aumento CP Elegível","Saídas CP Elegível","Aumento líquido do CP Elegível","Somatório dos aumentos dos CP Elegiveis ","Spread","Taxa Euribor a 12 meses","Benefício fiscal potencial (sem majoração)","Benefício fiscal potencial (com majoração)","Dedução do período","Valor dedutível nos 5 períodos de tributação posteriores."]
[null,{"$f":"F25","v":2023},0,{"$f":"SUM(F27,F29,F31,F33)","v":0},{"$f":"SUM(F41,F43)","v":0},{"$f":"D68-E68","v":0},{"$f":"F68","v":0},0,0.05,{"$f":"IF(G68*I68<0,0,G68*I68)","v":0},{"$f":"ROUNDUP(J68,2)","v":0},{"$f":"IF(K68<0,0,IF(K68>W2,W2,K68))","v":0},{"$f":"IF(AND(Y2=1,K68>W2),K68-W2,0)","v":0}]
[null,{"$f":"G25","v":2024},0,{"$f":"SUM(G27,G29,G31,G33)","v":0},{"$f":"SUM(G41,G43)","v":0},{"$f":"D69-E69","v":0},{"$f":"F69+G68","v":0},{"$f":"Z3","v":0.02},3.2219999999999999E-2,{"$f":"IF((G69*X3)<0,0,(G69*X3))","v":0},{"$f":"ROUNDUP(J69*1.5,2)","v":0},{"$f":"IF((K69+M68)<0,0,IF((K69+M68)>W3,W3,(K69+M68)))","v":0},{"$f":"IF(AND(Y3=1,(K69+M68)>W3),(K69+M68)-W3,IF(K69>L69,M68,(K69+M68-L69)))","v":0}]
[null,{"$f":"H25","v":2025},0,{"$f":"SUM(H27,H29,H31,H33)","v":0},{"$f":"SUM(H41,H43)","v":0},{"$f":"D70-E70","v":0},{"$f":"F70+G69","v":0},{"$f":"Z4","v":0.02},0,{"$f":"IF((G70*X4)<0,0,(G70*X4))","v":0},{"$f":"J70*1.3","v":0},{"$f":"IF((K70+M69)<0,0,IF((K70+M69)>W4,W4,(K70+M69)))","v":0},0]
[null,{"$f":"I25","v":2026},0,{"$f":"SUM(I27,I29,I31,I33)","v":0},{"$f":"SUM(I41,I43)","v":0},{"$f":"D71-E71","v":0},{"$f":"F71+G70","v":0},0.02,0,0,{"$f":"J71*1.2","v":0},0,0]
[null,{"$f":"J25","v":2027},0,{"$f":"SUM(J27,J29,J31,J33)","v":0},{"$f":"SUM(J41,J43)","v":0},0,0,0.02,0,0,{"$f":"J72","v":0},0,0]
[null,{"$f":"K25","v":2028},0,{"$f":"SUM(K27,K29,K31,K33)","v":0},{"$f":"SUM(K41,K43)","v":0},0,0,0.02,0,0,{"$f":"J73","v":0},0,0]
[null,{"$f":"L25","v":2029},0,{"$f":"SUM(L27,L29,L31,L33)","v":0},{"$f":"SUM(L41,L43)","v":0},0,0,0.02,0,0,{"$f":"J74","v":0},0,0]
[null,null,null,null,null,null,null,null,"Total",{"$f":"SUM(J68:J69)","v":0},{"$f":"SUM(K68:K69)","v":0},{"$f":"SUM(L68:L69)","v":0}]
[]
[]
[null,"Não cumpre com as condições de acesso ao incentivo à capitalização das empresas"]
[null,null,null,null,null,null,0]
[null,{"$f":"B79+31","v":"1900-01-31"},null,null,null,null,0]
[]
[]
[]
[]
[]
[]
[]
[]
[]
[]
[]
[]
[null,"Data de simulação",null,null,null,null,null,null,{"$f":"TODAY()","v":"2025-03-05"}]
[]
[]
[]
[]
[]
[]
[]
[]
[]
[null,"A Ordem não se responsabiliza por valores incorretos apurados, resultantes de erros na introdução de dados ou na interpretação das normas aplicáveis."]
[]
[null,""]

{"sheet":"Alerta","index":1,"n_rows":14,"n_cols":2,"rows_kept":14,"cut":false,"hidden":false,"merged":[[0,1,0,6],[1,1,1,6],[5,1,5,6],[13,1,14,5]]}
[]
[null,"Simulador"]
[]
[]
[]
[null,"Para utilizar o simulador deverá ativar as macros."]
[]
[]
[]
[]
[]
[]
[]
[null,"Ficheiro compatível apenas com versões posteriores a Microsoft Office Excel 2007 e em formato Livro com Permissão para Macros do Excel (*.xlsm)"]